bitfinex/quotes_ETHUSD_20210701
["timestamp","ask_amount","ask_price","bid_price","bid_amount"]
[1625155444034,0.82098,2104.3,2101.8,7.54363157]
[1625155444132,0.82098,2104.3,2101.9,0.36461182]
[1625155444288,0.15,2104.2,2101.9,0.36461182]
[1625155444636,20.0,2104.0,2101.9,0.36461182]
[1625155444737,20.0,2104.0,2101.4,0.16631504]
[1625155444835,0.31544332,2103.9,2101.3,15.1134033]
[1625155444983,0.14018196,2103.8,2101.3,15.1134033]
[1625155445081,0.16526306,2103.8,2101.3,15.1134033]
[1625155445181,0.17368873,2103.7,2101.3,15.1134033]
[1625155445284,0.1526302,2103.6,2101.3,15.1134033]
[1625155445783,0.1526302,2103.6,2101.3,23.1134033]
[1625155445939,0.1526302,2103.6,2101.4,0.04992568]
[1625155446302,0.1526302,2103.6,2101.3,28.1234033]
[1625155446507,3.919,2103.7,2101.4,0.1246158]
[1625155446612,2.2348,2103.8,2101.4,0.1246158]
[1625155446613,1.2328,2103.8,2101.4,0.1246158]
[1625155446703,2.334,2104.2,2101.4,2.65195604]
[1625155446857,2.334,2104.2,2101.5,15.0]
[1625155446955,2.478,2104.1,2101.6,0.42203829]
[1625155447252,0.15,2104.2,2101.6,0.42203829]
[1625155447504,2.376,2104.2,2101.6,0.42203829]
[1625155447809,7.13045,2103.9,2101.6,0.42203829]
[1625155447905,10.78735,2103.9,2101.6,0.42203829]
[1625155448008,10.95667605,2103.9,2101.5,1.259]
[1625155448153,10.95667605,2103.9,2101.5,5.01]
[1625155448302,0.02739476,2103.8,2101.3,119.1692]
[1625155448534,10.86772043,2103.9,2101.4,0.13597435]
[1625155448634,3.81794438,2103.9,2101.4,15.1517613]
[1625155448785,3.81794438,2103.9,2102.1,0.2843561]
[1625155448885,3.8069,2103.9,2102.1,0.3026649]
[1625155449237,0.15,2103.9,2102.1,0.3026649]
[1625155449339,0.15,2103.9,2102.1,3.5259649]
[1625155449541,5.602,2104.2,2102.1,8.5359649]
[1625155449638,5.812,2104.2,2102.1,8.5359649]
[1625155449834,11.991,2104.2,2102.1,8.5359649]
[1625155449936,2.292,2104.1,2102.1,8.5359649]
[1625155450089,2.292,2104.1,2102.1,3.5259649]
[1625155450195,20.0,2103.6,2102.1,3.2416088]
[1625155450295,0.15,2104.0,2102.2,0.1091196]
[1625155450443,0.15680635,2104.0,2102.1,0.0183088]
[1625155450540,0.16589536,2104.0,2102.1,0.0183088]
[1625155450685,7.13144,2103.7,2102.1,0.0183088]
[1625155450788,0.10569636,2103.6,2101.3,17.9768952]
[1625155450884,2.75569636,2103.6,2101.3,17.9768952]
[1625155451187,7.76569636,2103.6,2101.3,17.9768952]
[1625155451287,3.57644636,2103.6,2101.3,17.9768952]
[1625155451385,8.58644636,2103.6,2101.3,17.9768952]
[1625155451687,2.22,2103.5,2101.3,17.9768952]
[1625155451789,0.20001026,2103.4,2101.3,17.9768952]
[1625155452789,3.76161026,2103.4,2101.3,17.9768952]
[1625155452958,3.76161026,2103.4,2101.3,22.9868952]
[1625155453113,8.77161026,2103.4,2101.4,0.01]
[1625155453214,0.15,2103.3,2101.4,0.01]
[1625155453310,8.2754,2102.9,2101.4,0.01]
[1625155454015,8.28158079,2102.9,2101.4,0.01]
[1625155454114,20.0,2102.8,2101.4,0.01]
[1625155454264,0.04587421,2102.7,2101.4,0.01]
[1625155454413,2.226,2102.8,2101.3,17.9368952]
[1625155454569,2.23775276,2102.8,2100.8,0.474]
[1625155454664,0.01061164,2102.7,2100.8,0.474]
[1625155454761,0.01175276,2102.8,2100.8,0.474]
[1625155454863,0.01815863,2102.9,2100.8,0.474]
[1625155455065,0.01000368,2102.9,2100.8,0.474]
[1625155455364,0.01000368,2102.9,2100.9,0.16125099]
[1625155455515,1.71899366,2103.5,2100.9,0.16125099]
[1625155455760,1.71899366,2103.5,2100.9,2.64138848]
[1625155455862,1.71899366,2103.5,2101.0,17.2217194]
[1625155455965,1.71899366,2103.5,2101.1,0.49516381]
[1625155456243,2.226,2103.5,2101.4,28.75]
[1625155456387,0.15,2103.4,2101.5,0.14429751]
[1625155457191,3.32075,2103.6,2101.5,0.14429751]
[1625155457289,3.32075,2103.6,2101.5,3.76459751]
[1625155457552,3.32075,2103.6,2101.5,8.77459751]
[1625155457904,20.0,2103.0,2101.5,16.77459751]
[1625155458007,3.32075,2103.6,2101.5,8.77459751]
[1625155458104,3.32075,2103.6,2101.5,8.6303]
[1625155458204,3.32075,2103.6,2101.6,0.19359219]
[1625155458455,2.388,2103.9,2101.8,0.25959831]
[1625155458456,0.85879082,2103.9,2101.8,0.25959831]
[1625155458554,0.15,2103.8,2101.8,0.25959831]
[1625155458705,0.03200788,2103.6,2101.8,0.25959831]
[1625155460184,0.03200788,2103.6,2101.7,33.77220169]
[1625155460388,0.03200788,2103.6,2101.7,53.98507129]
[1625155460488,46.87829025,2103.5,2101.8,0.23741871]
[1625155460632,46.87829025,2103.5,2101.7,53.98507129]
[1625155460883,50.25219025,2103.5,2101.7,53.98507129]
[1625155460982,55.26219025,2103.5,2101.7,48.97507129]
[1625155461089,55.26219025,2103.5,2101.7,48.9628696]
[1625155461236,0.17498054,2103.4,2101.7,20.2128696]
[1625155461336,1.33878054,2103.4,2101.0,36.11091907]
[1625155461437,1.33878054,2103.4,2101.0,44.11091907]
[1625155461582,1.33878054,2103.4,2101.0,42.3694667]
[1625155462078,1.32380016,2103.4,2101.0,44.5911861]
[1625155462234,1.17380016,2103.4,2101.9,7.12998]
[1625155462427,0.01000016,2103.4,2101.9,12.13998]
[1625155463132,0.01000016,2103.4,2101.9,20.13998]
[1625155463292,46.87829025,2103.5,2102.5,7.12849]
[1625155463379,46.87829025,2103.5,2102.5,10.50689]
[1625155463478,46.87829025,2103.5,2102.5,15.51689]
[1625155463633,46.87829025,2103.5,2102.5,8.3884]
[1625155463727,46.87829025,2103.5,2102.5,3.3784]
[1625155464643,54.00798025,2103.5,2102.5,7.12969]
[1625155465646,54.00798025,2103.5,2102.5,11.15029]
[1625155466093,54.00798025,2103.5,2102.5,3.9706]
[1625155467178,54.00798025,2103.5,2102.3,13.0695]
[1625155467333,46.87829025,2103.4,2102.3,13.0695]
[1625155467428,46.87829025,2103.4,2102.4,0.15570589]
[1625155467582,46.87829025,2103.4,2102.0,9.50642]
[1625155467679,0.0178158,2103.3,2102.0,9.50642]
[1625155467779,46.87829025,2103.4,2102.0,9.50642]
[1625155468131,7.13168,2102.9,2102.0,9.50642]
[1625155468226,10.79228,2102.9,2102.0,9.50642]
[1625155468327,46.87829025,2102.8,2102.0,9.50642]
[1625155468476,46.87829025,2102.8,2102.0,13.07187]
[1625155468885,46.87829025,2102.8,2102.0,3.56545]
[1625155469036,46.32829025,2102.8,2102.0,3.56545]
[1625155469136,3.6606,2102.9,2102.0,3.56545]
[1625155469236,46.32829025,2102.7,2102.0,3.56545]
[1625155469641,46.32829025,2102.7,2101.8,0.02900117]
[1625155469843,51.33829025,2102.7,2101.8,0.02900117]
[1625155469941,51.33829025,2102.7,2102.5,0.02895806]
[1625155470090,46.32829025,2102.7,2102.5,0.02895806]
[1625155470540,53.46082025,2102.7,2102.5,0.02895806]
[1625155471497,46.32829025,2102.7,2102.5,0.02895806]
[1625155471599,7.13069,2103.3,2102.5,0.02895806]
[1625155471799,11.92011788,2103.6,2102.5,0.02895806]
[1625155471898,19.02829025,2103.3,2102.5,0.02895806]
[1625155471994,19.02829025,2103.3,2102.5,0.03726818]
[1625155472244,0.03200788,2103.6,2102.5,0.03726818]
[1625155472245,19.02829025,2103.2,2102.5,0.03726818]
[1625155472696,26.15902025,2103.2,2102.5,0.03726818]
[1625155472794,19.02829025,2103.2,2102.4,12.03067]
[1625155473655,19.02829025,2103.2,2102.4,9.91031]
[1625155473754,19.02829025,2103.2,2102.8,7.12907]
[1625155473854,19.02829025,2103.2,2102.8,11.92617]
[1625155475208,27.4,2103.1,2102.5,9.50586]
[1625155475470,19.02829025,2103.2,2102.2,9.50686]
[1625155475571,0.15,2103.0,2102.0,4.85297]
[1625155475678,17.55,2102.9,2100.9,1.74145237]
[1625155475780,32.69,2102.9,2100.9,1.74145237]
[1625155475886,20.0,2102.2,2100.9,11.88578]
[1625155475968,15.0,2102.1,2100.8,0.42069702]
[1625155476072,20.0,2101.5,2100.8,0.42069702]
[1625155476171,29.0218,2101.5,2100.7,4.3160267]
[1625155476318,0.15,2101.4,2100.7,4.3160267]
[1625155476419,0.15,2101.4,2100.5,0.02218321]
[1625155476420,15.15,2101.4,2100.5,0.02218321]
[1625155476517,35.29,2101.4,2100.2,5.0]
[1625155476623,3.56999,2100.9,2100.2,5.0]
[1625155476718,3.57717215,2100.9,2100.2,5.0]
[1625155476828,0.15,2100.8,2100.2,5.0]
[1625155477384,4.83469,2100.9,2100.2,5.0]
[1625155477385,7.14048,2100.6,2100.2,5.0]
[1625155477986,0.08,2100.5,2100.2,5.0]
[1625155478085,3.57007,2100.4,2100.2,5.0]
[1625155478189,3.57007,2100.4,2100.1,6.32e-06]
[1625155478288,3.57007,2100.4,2099.9,6.32e-06]
[1625155478391,7.14143,2100.2,2099.9,6.32e-06]
[1625155478546,25.01,2100.2,2099.9,6.32e-06]
[1625155478692,47.151717,2100.2,2099.9,6.32e-06]
[1625155478801,20.0,2099.8,2099.1,0.00853552]
[1625155478889,23.4036,2099.8,2099.1,0.00853552]
[1625155478990,8.4136,2099.8,2098.4,0.00853552]
[1625155479144,3.5726,2099.5,2098.4,0.00853552]
[1625155479295,3.5726,2099.5,2097.4,0.02]
[1625155479296,0.06496816,2098.9,2097.4,0.00074048]
[1625155479391,20.0,2098.8,2097.4,0.00074048]
[1625155479549,10.67490965,2098.2,2097.4,0.00074048]
[1625155479639,4.94827965,2098.2,2097.4,0.00074048]
[1625155479741,9.95827965,2098.2,2096.2,6.89221287]
[1625155479958,4.94827965,2098.2,2096.2,21.85321287]
[1625155480105,0.00905817,2098.1,2096.2,6.85321287]
[1625155480260,20.0,2097.6,2096.3,0.08]
[1625155480360,20.0,2097.6,2095.6,4.3060267]
[1625155480361,23.1818,2097.6,2095.9,13.0345874]
[1625155480510,0.05059118,2097.5,2095.9,13.0345874]
[1625155480607,0.05059118,2097.5,2095.9,19.9045874]
[1625155480707,9.5362,2097.3,2095.9,19.6545874]
[1625155480805,9.4862,2097.3,2095.9,19.1045874]
[1625155480955,14.14481518,2098.1,2095.9,19.1045874]
[1625155481052,2.6,2097.5,2095.9,19.1045874]
[1625155481156,11.93081518,2098.1,2096.0,0.06]
[1625155481255,11.93081518,2098.1,2095.9,19.1045874]
[1625155481351,15.37731518,2098.1,2095.9,19.1045874]
[1625155481454,20.38731518,2098.1,2095.9,19.1045874]
[1625155481606,20.38731518,2098.1,2095.9,19.0545874]
[1625155481754,7.15016,2097.4,2095.9,19.0545874]
[1625155481856,11.97516,2097.4,2095.9,19.0545874]
[1625155481954,11.9832629,2097.4,2095.9,19.0545874]
[1625155482054,4.8331029,2097.4,2095.9,19.0545874]
[1625155482296,4.8331029,2097.4,2095.9,12.1845874]
[1625155482647,4.825,2097.4,2095.9,19.0545874]
[1625155483047,7.15091,2097.1,2095.9,19.0545874]
[1625155483149,4.725,2097.4,2095.9,19.0545874]
[1625155483300,5.6696,2097.4,2095.9,6.87]
[1625155483599,5.67635307,2097.4,2095.9,6.87]
[1625155483852,5.67635307,2097.4,2095.6,7.9159528]
[1625155483949,5.67635307,2097.4,2095.6,7.8159528]
[1625155484052,0.01122181,2097.3,2095.6,14.6859528]
[1625155484150,11.8486,2097.4,2095.6,14.6859528]
[1625155484300,11.8486,2097.4,2095.6,14.6359528]
[1625155484650,9.53507,2097.0,2095.6,14.6359528]
[1625155484750,10.904,2097.4,2095.6,16.94794693]
[1625155484851,10.904,2097.4,2095.7,0.15]
[1625155484948,10.9360993,2097.4,2095.7,0.15]
[1625155485047,10.9360993,2097.4,2095.8,0.08]
[1625155485150,10.9360993,2097.4,2095.9,0.16468821]
[1625155485247,10.9360993,2097.4,2095.9,0.31468821]
[1625155485695,10.9360993,2097.4,2095.9,0.15]
[1625155485899,11.04898451,2097.4,2095.9,0.15]
[1625155486501,11.04898451,2097.4,2096.0,0.11366178]
[1625155486750,11.04898451,2097.4,2096.1,0.15]
[1625155486845,11.04898451,2097.4,2096.2,0.1015281]
[1625155487549,11.04898451,2097.4,2096.2,3.4241281]
[1625155487649,6.32398451,2097.4,2096.3,0.15]
[1625155487847,6.32398451,2097.4,2096.4,0.18462957]
[1625155488003,6.32398451,2097.4,2096.3,0.15]
[1625155490055,10.73648451,2097.4,2096.3,0.15]
[1625155491011,10.73648451,2097.4,2096.3,3.9849]
[1625155492012,6.32398451,2097.4,2096.3,3.9849]
[1625155492101,6.32398451,2097.4,2096.4,0.13383109]
[1625155492302,10.0599,2098.6,2096.5,0.15]
[1625155492407,2.094,2098.5,2096.5,0.15]
[1625155492508,10.65,2098.0,2096.4,0.11818672]
[1625155492607,14.5447,2098.0,2095.8,11.27897445]
[1625155492705,0.01804467,2097.5,2095.8,1.74145237]
[1625155492810,1.2856,2096.9,2095.8,1.74145237]
[1625155492917,7.1287,2096.9,2095.6,4.1560267]
[1625155493007,7.1375436,2096.9,2095.6,4.1560267]
[1625155493262,7.1375436,2096.9,2095.5,6.8700067]
[1625155493357,10.7,2096.8,2095.4,1.08006146]
[1625155493473,1.5201,2095.6,2095.2,1.024e-05]
[1625155493576,2.7028,2095.6,2095.0,0.00940228]
[1625155494069,2.7028,2095.6,2094.9,0.02]
[1625155494266,0.1147561,2095.7,2094.9,0.02]
[1625155494416,0.01441348,2096.3,2094.9,0.02]
[1625155494518,0.01441348,2096.3,2095.0,32.008]
[1625155494623,10.5609,2096.7,2095.1,15.0]
[1625155494817,10.5609,2096.7,2095.2,0.15]
[1625155495071,10.5609,2096.7,2095.3,0.09305694]
[1625155495266,10.5609,2096.7,2095.4,0.15]
[1625155495571,10.5609,2096.7,2096.3,0.00689732]
[1625155496473,0.82218,2096.9,2096.3,0.00689732]
[1625155498401,0.82835527,2096.9,2096.3,0.00689732]
[1625155498507,0.82218,2096.9,2096.3,0.00689732]
[1625155499052,7.97559,2096.9,2096.3,0.00689732]
[1625155499403,0.82218,2096.9,2096.3,0.00689732]
[1625155502472,0.82218,2096.9,2096.3,1.16709732]
[1625155502561,0.82218,2096.9,2096.3,4.55439732]
[1625155502862,0.82218,2096.9,2096.3,9.56439732]
[1625155502971,0.82218,2096.9,2096.3,9.55139732]
[1625155503062,0.82218,2096.9,2096.3,4.54139732]
[1625155504069,2.184,2097.7,2096.4,28.8]
[1625155504170,2.184,2097.7,2096.4,28.97562303]
[1625155504269,5.01,2098.1,2097.4,3.71246533]
[1625155504366,10.1488,2098.3,2097.5,0.07469256]
[1625155504517,22.166,2099.1,2097.5,0.07469256]
[1625155504713,2.166,2099.1,2097.5,0.22469256]
[1625155504864,2.16,2098.9,2097.5,0.17469256]
[1625155505163,7.1452,2099.3,2097.5,0.17469256]
[1625155505164,9.3532,2099.3,2097.5,0.17469256]
[1625155505415,7.1452,2099.3,2097.5,0.17469256]
[1625155506516,7.1452,2099.3,2097.6,7.14397]
[1625155506665,7.1452,2099.3,2097.7,0.02471201]
[1625155506761,7.1452,2099.3,2097.7,0.15]
[1625155507104,22.59565,2099.9,2097.7,0.15]
[1625155507209,10.0323,2100.0,2097.8,0.27483706]
[1625155507359,10.0323,2100.0,2097.9,0.15]
[1625155507459,17.17438,2100.0,2098.4,7.14102]
[1625155507607,17.17438,2100.0,2098.5,0.29660703]
[1625155507706,17.17438,2100.0,2098.5,0.44660703]
[1625155508006,10.0323,2100.0,2098.5,0.44660703]
[1625155508810,10.0323,2100.0,2099.0,10.43326]
[1625155508905,7.13975,2100.6,2099.0,10.43326]
[1625155509006,7.13975,2100.6,2099.1,0.22743184]
[1625155509663,3.5708687,2100.6,2099.8,0.10381595]
[1625155509764,0.03135487,2100.5,2099.8,0.2076319]
[1625155509914,3.5708687,2100.6,2099.8,0.10381595]
[1625155509915,11.45,2100.0,2099.8,0.10381595]
[1625155510064,11.45,2100.0,2098.5,0.15]
[1625155510164,15.23060094,2100.0,2098.5,0.15]
[1625155510264,0.05817126,2099.9,2098.5,0.15]
[1625155510915,8.05817126,2099.9,2098.5,0.15]
[1625155511015,13.06817126,2099.9,2098.5,0.15]
[1625155511113,13.06817126,2099.9,2097.9,5.01]
[1625155511114,7.14302,2099.6,2097.9,7.14302]
[1625155511215,7.15314873,2099.6,2097.9,7.29302]
[1625155511316,0.08773862,2099.5,2097.9,0.15]
[1625155511466,4.52193862,2099.5,2097.9,0.15]
[1625155511906,9.53193862,2099.5,2097.4,18.4007787]
[1625155512003,4.52193862,2099.5,2097.4,18.4007787]
[1625155512152,4.4342,2099.5,2097.5,0.01090074]
[1625155512255,4.4342,2099.5,2097.7,7.14415]
[1625155512356,4.4342,2099.5,2097.8,15.0]
[1625155512555,2.4399,2099.6,2097.8,15.15]
[1625155512660,1.3035,2099.6,2097.9,0.01907336]
[1625155512757,13.044496,2100.1,2097.9,0.01907336]
[1625155512906,13.044496,2100.1,2098.1,0.09186257]
[1625155513159,0.01388293,2100.0,2097.9,0.15]
[1625155513259,7.14478,2099.3,2097.6,5.01]
[1625155513356,11.33818,2099.3,2097.6,0.15]
[1625155513459,0.05269888,2099.2,2097.6,0.15]
[1625155513706,0.05810656,2099.2,2097.6,0.15]
[1625155514360,0.05810656,2099.2,2097.6,7.29459]
[1625155514458,0.9877,2099.6,2097.7,15.0]
[1625155514562,45.68491773,2100.2,2097.7,15.0]
[1625155514563,18.01168472,2100.1,2097.7,15.0]
[1625155514662,5.01,2099.9,2097.8,0.23439766]
[1625155514762,0.02648815,2100.0,2097.8,4.16901853]
[1625155514862,13.00168472,2100.1,2097.9,15.01378439]
[1625155515063,13.00168472,2100.1,2098.0,0.16137163]
[1625155515162,13.00168472,2100.1,2098.1,0.08283017]
[1625155515312,13.00168472,2100.1,2098.2,0.15]
[1625155515410,13.00168472,2100.1,2098.3,0.07529415]
[1625155515814,12.3411,2100.3,2098.3,0.07529415]
[1625155515958,7.14321,2099.8,2098.3,7.14222]
[1625155516048,7.14321,2099.8,2098.3,12.15222]
[1625155516825,7.14321,2099.8,2098.2,0.16020386]
[1625155517026,0.02931231,2099.7,2098.2,0.16020386]
[1625155517275,7.14321,2099.8,2098.2,0.16020386]
[1625155517423,7.14321,2099.8,2098.2,1.22900386]
[1625155517628,12.15321,2099.8,2098.2,1.22900386]
[1625155517827,0.04139656,2099.7,2098.2,1.22900386]
[1625155517929,20.15321,2099.8,2098.2,1.2188]
[1625155518805,20.10321,2099.8,2098.2,1.2188]
[1625155519255,0.01207021,2099.7,2098.2,1.2188]
[1625155519357,0.01207021,2099.7,2098.2,0.15]
[1625155519519,20.0,2099.1,2097.7,0.02075362]
[1625155519613,20.0,2098.7,2097.7,0.02075362]
[1625155519764,0.06681911,2098.6,2097.7,0.02075362]
[1625155520470,7.14646,2098.8,2097.7,0.02075362]
[1625155520622,7.14646,2098.8,2097.7,5.83095362]
[1625155521116,0.02925339,2099.1,2097.7,5.83095362]
[1625155521217,0.01386496,2099.1,2097.7,5.83095362]
[1625155521367,0.03207286,2098.8,2097.7,5.83095362]
[1625155521668,0.03207286,2098.8,2097.7,4.52945362]
[1625155522807,7.14724,2098.5,2097.7,4.52945362]
[1625155523007,9.56163286,2098.8,2097.7,4.52945362]
[1625155523114,0.03207286,2098.8,2097.7,9.53945362]
[1625155523213,0.03207286,2098.8,2097.7,10.81265362]
[1625155523310,0.03207286,2098.8,2097.7,5.80265362]
[1625155524413,0.03207286,2098.8,2097.7,10.81265362]
[1625155524516,10.63723782,2099.3,2097.7,10.81265362]
[1625155524614,10.63723782,2099.3,2097.8,0.23322736]
[1625155524711,10.63723782,2099.3,2097.8,15.23322736]
[1625155524972,10.63723782,2099.3,2097.8,20.24322736]
[1625155525123,10.63723782,2099.3,2097.8,22.49976229]
[1625155525622,10.63723782,2099.3,2098.4,7.14204]
[1625155525724,7.1412,2100.3,2098.5,15.26401317]
[1625155525822,10.836,2100.7,2098.5,20.02719415]
[1625155525970,10.836,2100.7,2098.5,25.03719415]
[1625155526119,10.836,2100.7,2098.5,24.91719415]
[1625155526321,3.570406,2101.0,2098.5,24.91719415]
[1625155526428,31.84479025,2101.3,2098.6,0.83194]
[1625155526522,6.179,2101.1,2098.6,4.32567426]
[1625155526626,6.179,2101.1,2098.7,15.54427439]
[1625155526730,6.179,2101.1,2098.9,3.46]
[1625155526822,6.179,2101.1,2099.1,0.34382328]
[1625155527026,6.179,2101.1,2099.3,9.51788]
[1625155527211,6.179,2101.1,2099.8,3.8969]
[1625155527271,6.179,2101.1,2099.9,0.11088637]
[1625155527417,6.179,2101.1,2099.9,0.26088637]
[1625155527516,6.179,2101.1,2099.9,0.25149037]
[1625155528120,6.179,2101.1,2100.2,7.13588]
[1625155528267,6.179,2101.1,2100.3,0.15]
[1625155528471,6.179,2101.1,2100.3,3.482]
[1625155528567,6.179,2101.1,2100.3,8.492]
[1625155529017,6.179,2101.1,2100.3,3.482]
[1625155529268,6.179,2101.1,2100.3,8.492]
[1625155529471,6.179,2101.1,2100.4,7.13556]
[1625155529567,6.179,2101.1,2100.4,12.14556]
[1625155529820,6.179,2101.1,2100.4,7.13556]
[1625155529919,6.179,2101.1,2100.1,14.52415]
[1625155530620,6.179,2101.1,2100.1,9.51415]
[1625155530727,6.179,2101.1,2100.0,0.15]
[1625155530825,0.04168788,2101.0,2099.4,0.15]
[1625155531078,0.04168788,2101.0,2099.3,9.51788]
[1625155531174,0.04168788,2101.0,2099.0,13.4461008]
[1625155531729,2.8,2100.8,2099.0,13.4461008]
[1625155531825,0.26598961,2100.7,2099.0,13.4461008]
[1625155532124,7.1401,2100.6,2099.0,20.5863708]
[1625155532224,0.08430851,2100.5,2099.0,20.5863708]
[1625155532325,0.03430851,2100.5,2099.0,7.14027]
[1625155532429,0.13405612,2100.5,2098.8,10.3971681]
[1625155532581,0.14605398,2100.5,2098.2,12.0541]
[1625155532681,3.5713562,2100.3,2098.2,12.0541]
[1625155532780,0.00809838,2100.2,2098.2,12.0541]
[1625155532879,0.25656866,2100.1,2098.2,12.0541]
[1625155533228,0.25656866,2100.1,2098.2,10.0541]
[1625155534063,0.25656866,2100.1,2098.2,15.0641]
[1625155534218,7.14266,2099.8,2098.2,22.20687]
[1625155534415,0.01623397,2099.9,2098.2,37.20687]
[1625155534515,0.00809838,2100.2,2098.2,15.39237]
[1625155534616,0.01460551,2100.2,2098.2,15.39237]
[1625155534715,0.00809838,2100.2,2098.2,15.39237]
[1625155534813,0.01114678,2100.1,2098.2,15.39237]
[1625155535014,0.00809838,2100.2,2098.2,15.39237]
[1625155535320,0.00809838,2100.2,2098.3,0.15]
[1625155535421,7.14155,2100.0,2098.8,7.14082]
[1625155535519,3.5713562,2100.3,2098.8,16.36232]
[1625155535718,3.5713562,2100.3,2098.9,0.09062493]
[1625155535815,3.5713562,2100.3,2098.8,9.2215]
[1625155535916,9.52193,2100.4,2098.8,9.2215]
[1625155536230,6.3701421,2100.8,2098.9,0.23084019]
[1625155536376,2.8,2100.8,2098.9,0.23084019]
[1625155536477,9.93857,2100.8,2099.6,11.15257]
[1625155536576,9.93857,2100.8,2099.6,16.16257]
[1625155536825,9.93857,2100.8,2099.6,16.21451048]
[1625155536977,9.93857,2100.8,2099.6,16.16988203]
[1625155537272,9.93857,2100.8,2099.6,16.16257]
[1625155537372,9.93857,2100.8,2099.6,16.16908239]
[1625155537476,9.93857,2100.8,2099.6,16.16257]
[1625155537582,9.93857,2100.8,2099.6,4.0142]
[1625155537828,9.93857,2100.8,2099.2,0.15]
[1625155538868,0.02943443,2100.7,2099.2,0.15]
[1625155538968,7.13995,2100.4,2099.2,7.2897]
[1625155539191,12.13995,2100.4,2098.6,9.52109]
[1625155539290,12.13995,2100.4,2098.3,22.7083286]
[1625155539291,27.15870244,2100.4,2098.3,22.7083286]
[1625155539433,50.90763004,2100.3,2098.2,10.4992]
[1625155539531,5.0,2100.2,2098.2,10.4992]
[1625155539622,30.14,2100.2,2097.4,36.3520884]
[1625155539724,3.5723674,2099.5,2097.5,15.0]
[1625155539822,0.15430349,2099.4,2097.5,15.0]
[1625155540370,0.15430349,2099.4,2097.4,36.3520884]
[1625155540473,7.1449,2099.0,2097.5,9.52619]
[1625155540729,4.2487387,2099.3,2097.5,9.52619]
[1625155540730,0.0305123,2098.9,2097.5,9.52619]
[1625155540865,0.09330965,2099.2,2097.5,9.52619]
[1625155541567,0.09330965,2099.2,2097.5,13.74329]
[1625155541665,4.0,2099.3,2097.5,13.74329]
[1625155541766,4.0,2099.3,2097.6,15.0]
[1625155541919,7.14448,2099.1,2097.9,7.14378]
[1625155542015,4.0,2099.3,2097.9,22.14378]
[1625155542568,4.0,2099.3,2097.9,12.16232207]
[1625155542671,4.0,2099.3,2097.9,5.823]
[1625155542977,4.0,2099.3,2098.5,11.76556]
[1625155543077,4.0,2099.3,2098.6,15.0]
[1625155543173,11.9076,2100.1,2098.7,28.8]
[1625155543273,11.9076,2100.1,2098.8,0.0993939]
[1625155543421,11.9076,2100.1,2098.8,0.2493939]
[1625155543827,19.0501301,2100.1,2098.8,0.15]
[1625155543924,19.0501301,2100.1,2098.1,9.53157989]
[1625155544029,7.1437,2099.3,2098.3,0.15]
[1625155544573,7.1437,2099.3,2097.7,22.1947036]
[1625155544726,7.1437,2099.3,2097.7,22.3447036]
[1625155545072,7.1437,2099.3,2097.8,15.0]
[1625155545228,7.1437,2099.3,2097.9,7.29382]
[1625155546072,7.1439785,2099.6,2097.9,12.22012]
[1625155546167,7.1439785,2099.6,2097.9,27.23107507]
[1625155546268,14.2870185,2099.6,2098.2,7.14289]
[1625155546498,14.2870185,2099.6,2098.2,22.14289]
[1625155546659,5.01,2100.2,2098.1,1.0316]
[1625155546660,3.5712002,2100.2,2098.3,0.15]
[1625155546750,7.1423702,2100.2,2098.2,2.3886726]
[1625155546899,1.7380545,2100.6,2098.4,3.43174849]
[1625155547049,1.7380545,2100.6,2098.5,0.08162293]
[1625155547200,21.1111,2100.8,2098.5,15.08162293]
[1625155547300,7.1405668,2100.7,2098.6,0.15]
[1625155547488,7.14043,2100.3,2099.1,7.14012]
[1625155547572,7.14043,2100.3,2099.1,11.44172]
[1625155547722,7.14043,2100.3,2099.1,4.4516]
[1625155548726,7.14043,2100.3,2099.1,4.3016]
[1625155548826,7.14043,2100.3,2099.0,0.8067]
[1625155548974,0.05784241,2100.2,2098.5,9.67187]
[1625155549523,0.05784241,2100.2,2098.6,15.0]
[1625155549628,16.92054757,2100.7,2098.7,0.21364188]
[1625155549629,7.1419987,2100.3,2098.7,0.21364188]
[1625155549773,7.1419987,2100.3,2098.9,10.30255]
[1625155551026,0.03222674,2099.1,2099.0,15.0]
[1625155551228,6.74e-06,2099.1,2099.0,20.16]
[1625155551425,11.90438,2100.7,2099.0,20.28]
[1625155551529,2.0,2099.3,2099.1,0.1702334]
[1625155551675,2.0,2099.3,2099.0,21.9978]
[1625155551825,3.5700907,2100.7,2099.3,0.14414937]
[1625155551989,3.5700907,2100.7,2099.4,0.15]
[1625155552192,3.5700907,2100.7,2099.5,0.04526491]
[1625155552441,3.5700907,2100.7,2099.6,0.15]
[1625155552640,7.13983,2100.5,2099.6,0.15]
[1625155552842,11.0291,2100.9,2099.6,0.15]
[1625155553145,16.0291,2100.9,2099.6,0.15]
[1625155553291,16.0291,2100.9,2099.5,1.1997]
[1625155553292,24.0291,2100.9,2099.5,1.1997]
[1625155553395,39.0391,2100.9,2099.5,1.1997]
[1625155553497,0.00626548,2100.8,2099.5,1.1997]
[1625155553593,0.12626548,2100.8,2099.5,1.1997]
[1625155553692,0.08642426,2100.8,2099.5,1.1997]
[1625155553796,0.07626548,2100.8,2098.7,0.15]
[1625155553945,7.14176,2099.9,2098.8,7.14113]
[1625155554274,8.5808239,2100.4,2098.8,26.05183]
[1625155554275,3.5708239,2100.4,2098.8,26.05183]
[1625155554353,3.5708239,2100.4,2098.8,11.05183]
[1625155554652,3.5708239,2100.4,2098.8,16.06183]
[1625155554753,3.5708239,2100.4,2098.9,0.15]
[1625155555055,3.5708239,2100.4,2099.0,0.06]
[1625155555255,3.5708239,2100.4,2098.8,5.2598]
[1625155555356,3.5708239,2100.4,2099.0,0.15]
[1625155555455,7.14094,2100.1,2099.1,7.14015]
[1625155555555,7.14094,2100.1,2099.0,0.15]
[1625155556004,13.0919439,2100.4,2099.0,0.15]